[Event "Titled Tuesday Blitz February 01 A 2022"]
[White "Deac, Bogdan-Daniel"]
[Black "Alonso Rosell, Alvar"]
[WhiteFideId "1226380"]
[BlackFideId "2270544"]
[WhiteElo "2646"]
[BlackElo "2518"]
[Result "1-0"]
[Round "02"]
[TimeControl "180+1"]
[Date "2022.02.01"]
[WhiteClock "0:00:09"]
[BlackClock "0:00:03"]

1. e4 {[%clk 0:03:00]}  c5 {[%clk 0:02:57]} 2. Nf3 {[%clk 0:03:01]}  Nc6 {[%clk 0:02:57]} 3. d4 {[%clk 0:03:00]}  cxd4 {[%clk 0:02:58]} 4. Nxd4 {[%clk 0:03:01]}  e6 {[%clk 0:02:55]} 5. Nc3 {[%clk 0:02:59]}  Nf6 {[%clk 0:02:55]} 6. Qd3 {[%clk 0:02:52]}  a6 {[%clk 0:02:35]} 7. Nxc6 {[%clk 0:02:23]}  bxc6 {[%clk 0:02:34]} 8. e5 {[%clk 0:02:23]}  Nd5 {[%clk 0:02:33]} 9. Ne4 {[%clk 0:02:23]}  Nb4 {[%clk 0:01:53]} 10. Qc3 {[%clk 0:02:05]}  Qa5 {[%clk 0:01:17]} 11. Bd2 {[%clk 0:01:57]}  Qd5 {[%clk 0:00:54]} 12. Nd6+ {[%clk 0:01:34]}  Bxd6 {[%clk 0:00:50]} 13. exd6 {[%clk 0:01:35]}  a5 {[%clk 0:00:45]} 14. Qxg7 {[%clk 0:01:16]}  Qd4 {[%clk 0:00:44]} 15. Qg5 {[%clk 0:00:54]}  Qxd6 {[%clk 0:00:29]} 16. O-O-O {[%clk 0:00:39]}  Rb8 {[%clk 0:00:12]} 17. Bc4 {[%clk 0:00:29]}  Qd4 {[%clk 0:00:12]} 18. Bb3 {[%clk 0:00:19]}  Nxa2+ {[%clk 0:00:08]} 19. Kb1 {[%clk 0:00:19]}  Rxb3 {[%clk 0:00:08]} 20. cxb3 {[%clk 0:00:19]}  Nb4 {[%clk 0:00:09]} 21. Bc3 {[%clk 0:00:16]}  Qe4+ {[%clk 0:00:09]} 22. Ka1 {[%clk 0:00:16]}  Nc2+ {[%clk 0:00:07]} 23. Ka2 {[%clk 0:00:17]}  Nb4+ {[%clk 0:00:08]} 24. Bxb4 {[%clk 0:00:17]}  axb4 {[%clk 0:00:08]} 25. Rhe1 {[%clk 0:00:14]}  Qc2 {[%clk 0:00:07]} 26. Rd4 {[%clk 0:00:09]}  Qxf2 {[%clk 0:00:04]} 27. Ree4 {[%clk 0:00:07]}  Ba6 {[%clk 0:00:02]} 28. Rf4 {[%clk 0:00:06]}  Qe3 {[%clk 0:00:01]} 29. Qa5 {[%clk 0:00:06]}  Bb5 {[%clk 0:00:01]} 30. Qa8+ {[%clk 0:00:06]}  Ke7 {[%clk 0:00:01]} 31. Qxh8 {[%clk 0:00:07]}  c5 {[%clk 0:00:01]} 32. Qf6+ {[%clk 0:00:07]}  Ke8 {[%clk 0:00:01]} 33. Qxf7+ {[%clk 0:00:07]}  Kd8 {[%clk 0:00:02]} 34. Qf8+ {[%clk 0:00:08]}  Kc7 {[%clk 0:00:02]} 35. Qxc5+ {[%clk 0:00:09]}  Bc6 {[%clk 0:00:03]} 36. Rxd7+ {[%clk 0:00:09]} 1-0


[Site "https://www.chess.com"]

[Event "Titled Tuesday Blitz February 01 A 2022"]
[White "Erigaisi Arjun"]
[Black "Beerdsen, Thomas"]
[WhiteFideId "35009192"]
[BlackFideId "1030108"]
[WhiteElo "2745"]
[BlackElo "2585"]
[Result "1/2-1/2"]
[Round "02"]
[TimeControl "180+1"]
[Date "2022.02.01"]
[WhiteClock "0:00:06"]
[BlackClock "0:00:05"]

1. d4 {[%clk 0:03:00]}  d5 {[%clk 0:02:59]} 2. Bg5 {[%clk 0:02:59]}  Nf6 {[%clk 0:02:57]} 3. Nd2 {[%clk 0:02:58]}  c5 {[%clk 0:02:57]} 4. e3 {[%clk 0:02:58]}  Nc6 {[%clk 0:02:55]} 5. c3 {[%clk 0:02:58]}  h6 {[%clk 0:02:53]} 6. Bxf6 {[%clk 0:02:57]}  gxf6 {[%clk 0:02:54]} 7. dxc5 {[%clk 0:02:58]}  a5 {[%clk 0:02:53]} 8. Bb5 {[%clk 0:02:57]}  Rg8 {[%clk 0:02:50]} 9. Ne2 {[%clk 0:02:53]}  e5 {[%clk 0:02:46]} 10. b4 {[%clk 0:02:41]}  h5 {[%clk 0:02:34]} 11. Nf3 {[%clk 0:02:28]}  Bg4 {[%clk 0:01:54]} 12. Qa4 {[%clk 0:02:23]}  axb4 {[%clk 0:01:28]} 13. Bxc6+ {[%clk 0:02:23]}  bxc6 {[%clk 0:01:29]} 14. Qxc6+ {[%clk 0:02:23]}  Bd7 {[%clk 0:01:30]} 15. Qxd5 {[%clk 0:02:24]}  Qc8 {[%clk 0:01:23]} 16. Ng3 {[%clk 0:02:00]}  Bc6 {[%clk 0:01:17]} 17. Qc4 {[%clk 0:01:45]}  Rg4 {[%clk 0:01:11]} 18. e4 {[%clk 0:01:43]}  h4 {[%clk 0:01:08]} 19. h3 {[%clk 0:01:35]}  Rf4 {[%clk 0:01:07]} 20. Nh5 {[%clk 0:01:31]}  Rxe4+ {[%clk 0:01:06]} 21. Qxe4 {[%clk 0:01:32]}  Bxe4 {[%clk 0:01:07]} 22. Nxf6+ {[%clk 0:01:33]}  Ke7 {[%clk 0:01:03]} 23. Nxe4 {[%clk 0:01:33]}  f5 {[%clk 0:00:59]} 24. Nd6 {[%clk 0:01:33]}  Qxc5 {[%clk 0:00:58]} 25. Nxf5+ {[%clk 0:01:33]}  Kf6 {[%clk 0:00:57]} 26. O-O {[%clk 0:00:57]}  Kxf5 {[%clk 0:00:56]} 27. Nxh4+ {[%clk 0:00:57]}  Kf6 {[%clk 0:00:56]} 28. cxb4 {[%clk 0:00:58]}  Qxb4 {[%clk 0:00:55]} 29. Nf3 {[%clk 0:00:59]}  e4 {[%clk 0:00:53]} 30. Nh2 {[%clk 0:00:59]}  Bc5 {[%clk 0:00:43]} 31. Rab1 {[%clk 0:00:55]}  Qd2 {[%clk 0:00:28]} 32. Rbd1 {[%clk 0:00:52]}  Qxa2 {[%clk 0:00:22]} 33. Rc1 {[%clk 0:00:52]}  Rc8 {[%clk 0:00:20]} 34. Ra1 {[%clk 0:00:50]}  Qc4 {[%clk 0:00:17]} 35. Ng4+ {[%clk 0:00:41]}  Kg7 {[%clk 0:00:17]} 36. Rad1 {[%clk 0:00:39]}  Qe6 {[%clk 0:00:16]} 37. Rfe1 {[%clk 0:00:39]}  Rf8 {[%clk 0:00:14]} 38. Rc1 {[%clk 0:00:38]}  Bb6 {[%clk 0:00:11]} 39. Rb1 {[%clk 0:00:30]}  Rf4 {[%clk 0:00:11]} 40. Rb5 {[%clk 0:00:28]}  Qc6 {[%clk 0:00:08]} 41. Rg5+ {[%clk 0:00:28]}  Kh7 {[%clk 0:00:08]} 42. Rh5+ {[%clk 0:00:26]}  Kg7 {[%clk 0:00:07]} 43. Rg5+ {[%clk 0:00:26]}  Kf8 {[%clk 0:00:08]} 44. Rf1 {[%clk 0:00:22]}  e3 {[%clk 0:00:07]} 45. fxe3 {[%clk 0:00:18]}  Rxf1+ {[%clk 0:00:08]} 46. Kxf1 {[%clk 0:00:19]}  Qc1+ {[%clk 0:00:07]} 47. Ke2 {[%clk 0:00:19]}  Qc2+ {[%clk 0:00:06]} 48. Kf3 {[%clk 0:00:18]}  Qd1+ {[%clk 0:00:06]} 49. Kf2 {[%clk 0:00:17]}  Qc2+ {[%clk 0:00:05]} 50. Kf3 {[%clk 0:00:17]}  Qc6+ {[%clk 0:00:06]} 51. Kf2 {[%clk 0:00:15]}  Bc7 {[%clk 0:00:06]} 52. Rf5+ {[%clk 0:00:14]}  Ke8 {[%clk 0:00:07]} 53. Rf6 {[%clk 0:00:13]}  Qc2+ {[%clk 0:00:07]} 54. Kg1 {[%clk 0:00:13]}  Qd2 {[%clk 0:00:06]} 55. Rf2 {[%clk 0:00:13]}  Qe1+ {[%clk 0:00:06]} 56. Rf1 {[%clk 0:00:13]}  Qe2 {[%clk 0:00:06]} 57. Rf2 {[%clk 0:00:13]}  Qd3 {[%clk 0:00:06]} 58. Rf1 {[%clk 0:00:11]}  Bg3 {[%clk 0:00:06]} 59. Rf3 {[%clk 0:00:11]}  Qd1+ {[%clk 0:00:07]} 60. Rf1 {[%clk 0:00:12]}  Qe2 {[%clk 0:00:07]} 61. Rf3 {[%clk 0:00:11]}  Bh4 {[%clk 0:00:07]} 62. Rf4 {[%clk 0:00:08]}  Ke7 {[%clk 0:00:06]} 63. Re4+ {[%clk 0:00:08]}  Kd6 {[%clk 0:00:06]} 64. Rd4+ {[%clk 0:00:08]}  Kc5 {[%clk 0:00:07]} 65. Rf4 {[%clk 0:00:09]}  Bg3 {[%clk 0:00:05]} 66. Rf3 {[%clk 0:00:10]}  Bd6 {[%clk 0:00:05]} 67. Rf5+ {[%clk 0:00:09]}  Kc6 {[%clk 0:00:05]} 68. Rf2 {[%clk 0:00:10]}  Qe1+ {[%clk 0:00:05]} 69. Rf1 {[%clk 0:00:11]}  Qe2 {[%clk 0:00:05]} 70. Rf2 {[%clk 0:00:11]}  Qd1+ {[%clk 0:00:06]} 71. Rf1 {[%clk 0:00:11]}  Qd2 {[%clk 0:00:07]} 72. Rf2 {[%clk 0:00:10]}  Qc1+ {[%clk 0:00:07]} 73. Rf1 {[%clk 0:00:11]}  Qc2 {[%clk 0:00:08]} 74. Rf2 {[%clk 0:00:11]}  Qb1+ {[%clk 0:00:09]} 75. Rf1 {[%clk 0:00:12]}  Qb2 {[%clk 0:00:09]} 76. Rf2 {[%clk 0:00:12]}  Qa1+ {[%clk 0:00:10]} 77. Rf1 {[%clk 0:00:13]}  Qa3 {[%clk 0:00:10]} 78. Kf2 {[%clk 0:00:12]}  Qa2+ {[%clk 0:00:09]} 79. Kg1 {[%clk 0:00:12]}  Bc5 {[%clk 0:00:09]} 80. Rf6+ {[%clk 0:00:12]}  Kd5 {[%clk 0:00:09]} 81. Rf5+ {[%clk 0:00:12]}  Kc6 {[%clk 0:00:09]} 82. Rf6+ {[%clk 0:00:10]}  Kd7 {[%clk 0:00:09]} 83. Rf7+ {[%clk 0:00:10]}  Ke6 {[%clk 0:00:08]} 84. Rf2 {[%clk 0:00:11]}  Qb3 {[%clk 0:00:07]} 85. Rf3 {[%clk 0:00:11]}  Kd5 {[%clk 0:00:07]} 86. Rf5+ {[%clk 0:00:10]}  Kd6 {[%clk 0:00:06]} 87. Rf6+ {[%clk 0:00:10]}  Ke7 {[%clk 0:00:07]} 88. Rf3 {[%clk 0:00:11]}  Qd1+ {[%clk 0:00:07]} 89. Rf1 {[%clk 0:00:11]}  Qe2 {[%clk 0:00:07]} 90. Rf3 {[%clk 0:00:08]}  Qe1+ {[%clk 0:00:07]} 91. Kh2 {[%clk 0:00:07]}  Bd6+ {[%clk 0:00:07]} 92. g3 {[%clk 0:00:07]}  Qe2+ {[%clk 0:00:06]} 93. Rf2 {[%clk 0:00:08]}  Qe1 {[%clk 0:00:06]} 94. Kg2 {[%clk 0:00:08]}  Ke6 {[%clk 0:00:06]} 95. Rf6+ {[%clk 0:00:07]}  Kd5 {[%clk 0:00:06]} 96. Rf1 {[%clk 0:00:08]}  Qe2+ {[%clk 0:00:06]} 97. Rf2 {[%clk 0:00:09]}  Qe1 {[%clk 0:00:07]} 98. Nf6+ {[%clk 0:00:08]}  Ke6 {[%clk 0:00:05]} 99. Ne4 {[%clk 0:00:07]}  Be5 {[%clk 0:00:04]} 100. Ng5+ {[%clk 0:00:07]}  Kd5 {[%clk 0:00:04]} 101. e4+ {[%clk 0:00:07]}  Kc4 {[%clk 0:00:04]} 102. h4 {[%clk 0:00:06]}  Qe3 {[%clk 0:00:04]} 103. Rf3 {[%clk 0:00:05]}  Qe2+ {[%clk 0:00:04]} 104. Kh3 {[%clk 0:00:06]}  Bd4 {[%clk 0:00:03]} 105. Kg4 {[%clk 0:00:06]}  Be5 {[%clk 0:00:03]} 106. Kf5 {[%clk 0:00:06]}  Bc7 {[%clk 0:00:04]} 107. h5 {[%clk 0:00:06]}  Qh2 {[%clk 0:00:05]} 108. Kg6 {[%clk 0:00:06]}  Bxg3 {[%clk 0:00:05]} 109. h6 {[%clk 0:00:06]}  Bf4 {[%clk 0:00:05]} 110. Rxf4 {[%clk 0:00:03]}  Qxf4 {[%clk 0:00:06]} 111. h7 {[%clk 0:00:04]}  Qh4 {[%clk 0:00:05]} 112. Nf7 {[%clk 0:00:03]}  Qxe4+ {[%clk 0:00:05]} 113. Kg7 {[%clk 0:00:04]}  Qg4+ {[%clk 0:00:04]} 114. Kf8 {[%clk 0:00:05]}  Qc8+ {[%clk 0:00:05]} 115. Kg7 {[%clk 0:00:05]}  Qg4+ {[%clk 0:00:05]} 116. Kf8 {[%clk 0:00:06]}  Qc8+ {[%clk 0:00:05]} 117. Kg7 {[%clk 0:00:06]}  Qg4+ {[%clk 0:00:05]} 1/2-1/2


[Site "https://www.chess.com"]

[Event "Titled Tuesday Blitz February 01 A 2022"]
[White "Garcia Martin, Marta"]
[Black "Nakamura, Hikaru"]
[WhiteFideId "32084030"]
[BlackFideId "2016192"]
[WhiteElo "2102"]
[BlackElo "2850"]
[Result "0-1"]
[Round "02"]
[TimeControl "180+1"]
[Date "2022.02.01"]
[WhiteClock "0:00:08"]
[BlackClock "0:00:52"]

1. e4 {[%clk 0:03:00]}  g6 {[%clk 0:03:00]} 2. d4 {[%clk 0:02:57]}  Bg7 {[%clk 0:03:01]} 3. Nf3 {[%clk 0:02:57]}  c6 {[%clk 0:03:01]} 4. h3 {[%clk 0:02:56]}  d5 {[%clk 0:03:01]} 5. e5 {[%clk 0:02:56]}  f6 {[%clk 0:03:00]} 6. c4 {[%clk 0:02:56]}  Nh6 {[%clk 0:02:59]} 7. Nc3 {[%clk 0:02:56]}  Nf7 {[%clk 0:02:59]} 8. Bf4 {[%clk 0:02:45]}  O-O {[%clk 0:02:54]} 9. Qb3 {[%clk 0:02:40]}  fxe5 {[%clk 0:02:51]} 10. dxe5 {[%clk 0:02:32]}  e6 {[%clk 0:02:50]} 11. cxd5 {[%clk 0:02:28]}  cxd5 {[%clk 0:02:46]} 12. Be2 {[%clk 0:02:25]}  Nc6 {[%clk 0:02:46]} 13. Rd1 {[%clk 0:02:08]}  Qe7 {[%clk 0:02:33]} 14. O-O {[%clk 0:01:47]}  Nfxe5 {[%clk 0:02:33]} 15. Bg3 {[%clk 0:01:45]}  Nxf3+ {[%clk 0:02:22]} 16. Bxf3 {[%clk 0:01:46]}  Nd4 {[%clk 0:02:22]} 17. Rxd4 {[%clk 0:01:39]}  Bxd4 {[%clk 0:02:21]} 18. Nxd5 {[%clk 0:01:37]}  exd5 {[%clk 0:02:19]} 19. Qxd5+ {[%clk 0:01:34]}  Be6 {[%clk 0:02:19]} 20. Qxd4 {[%clk 0:01:34]}  Rad8 {[%clk 0:02:19]} 21. Qe3 {[%clk 0:01:21]}  Qf7 {[%clk 0:02:13]} 22. Be5 {[%clk 0:01:16]}  Bd5 {[%clk 0:02:05]} 23. Bg4 {[%clk 0:01:11]}  Rfe8 {[%clk 0:01:50]} 24. Re1 {[%clk 0:01:11]}  Bc6 {[%clk 0:01:38]} 25. f4 {[%clk 0:00:51]}  Qd5 {[%clk 0:01:27]} 26. Qg3 {[%clk 0:00:42]}  Qc5+ {[%clk 0:01:21]} 27. Kh2 {[%clk 0:00:40]}  Rd2 {[%clk 0:01:20]} 28. Bf3 {[%clk 0:00:33]}  Bxf3 {[%clk 0:01:16]} 29. Qxf3 {[%clk 0:00:34]}  Qd5 {[%clk 0:01:16]} 30. Qxd5+ {[%clk 0:00:30]}  Rxd5 {[%clk 0:01:16]} 31. Rc1 {[%clk 0:00:30]}  Re7 {[%clk 0:01:15]} 32. Rc8+ {[%clk 0:00:29]}  Kf7 {[%clk 0:01:16]} 33. h4 {[%clk 0:00:23]}  h5 {[%clk 0:01:13]} 34. Rh8 {[%clk 0:00:18]}  Ke6 {[%clk 0:01:13]} 35. Rf8 {[%clk 0:00:18]}  Rf7 {[%clk 0:01:13]} 36. Rg8 {[%clk 0:00:17]}  Kf5 {[%clk 0:01:13]} 37. Rb8 {[%clk 0:00:15]}  a6 {[%clk 0:01:08]} 38. Kh3 {[%clk 0:00:14]}  Rd3+ {[%clk 0:01:08]} 39. g3 {[%clk 0:00:14]}  Rd2 {[%clk 0:01:06]} 40. a3 {[%clk 0:00:13]}  Rfd7 {[%clk 0:01:01]} 41. Rf8+ {[%clk 0:00:13]}  Ke4 {[%clk 0:01:01]} 42. Rf6 {[%clk 0:00:12]}  Rc2 {[%clk 0:01:00]} 43. Bc3 {[%clk 0:00:11]}  Kf3 {[%clk 0:00:53]} 44. Rxg6 {[%clk 0:00:08]}  Rd1 {[%clk 0:00:52]} 0-1


[Site "https://www.chess.com"]

[Event "Titled Tuesday Blitz February 01 A 2022"]
[White "Goldin, Alexander"]
[Black "Savchenko, Boris"]
[WhiteFideId "2019540"]
[BlackFideId "4147332"]
[WhiteElo "2623"]
[BlackElo "2512"]
[Result "1-0"]
[Round "02"]
[TimeControl "180+1"]
[Date "2022.02.01"]
[WhiteClock "0:00:32"]
[BlackClock "0:00:06"]

1. Nf3 {[%clk 0:02:59]}  d5 {[%clk 0:02:59]} 2. g3 {[%clk 0:02:59]}  Bf5 {[%clk 0:02:58]} 3. Bg2 {[%clk 0:02:59]}  e6 {[%clk 0:02:59]} 4. O-O {[%clk 0:02:59]}  Nf6 {[%clk 0:03:00]} 5. d3 {[%clk 0:02:59]}  Be7 {[%clk 0:02:59]} 6. c4 {[%clk 0:02:59]}  c6 {[%clk 0:03:00]} 7. Qb3 {[%clk 0:02:59]}  Qb6 {[%clk 0:03:00]} 8. Qc2 {[%clk 0:02:57]}  c5 {[%clk 0:02:52]} 9. Nh4 {[%clk 0:02:51]}  Bg4 {[%clk 0:02:45]} 10. h3 {[%clk 0:02:51]}  Bh5 {[%clk 0:02:44]} 11. g4 {[%clk 0:02:51]}  Bg6 {[%clk 0:02:44]} 12. g5 {[%clk 0:02:48]}  Nfd7 {[%clk 0:02:42]} 13. cxd5 {[%clk 0:02:47]}  exd5 {[%clk 0:02:42]} 14. Nc3 {[%clk 0:02:48]}  Qd6 {[%clk 0:02:29]} 15. Nxd5 {[%clk 0:02:40]}  Nc6 {[%clk 0:02:27]} 16. Bf4 {[%clk 0:02:26]}  Nde5 {[%clk 0:02:28]} 17. Nxe7 {[%clk 0:02:15]}  Qxe7 {[%clk 0:02:29]} 18. Rac1 {[%clk 0:01:53]}  Nd4 {[%clk 0:02:25]} 19. Qd2 {[%clk 0:01:49]}  O-O {[%clk 0:02:17]} 20. e3 {[%clk 0:01:47]}  Ndc6 {[%clk 0:01:49]} 21. Nxg6 {[%clk 0:01:47]}  Nxg6 {[%clk 0:01:35]} 22. Bg3 {[%clk 0:01:38]}  Qxg5 {[%clk 0:01:33]} 23. Qc3 {[%clk 0:01:38]}  Qf5 {[%clk 0:00:59]} 24. Rfd1 {[%clk 0:01:21]}  Rfc8 {[%clk 0:00:56]} 25. Qxc5 {[%clk 0:01:13]}  Qd7 {[%clk 0:00:56]} 26. Qd5 {[%clk 0:01:10]}  Qe8 {[%clk 0:00:56]} 27. Rc5 {[%clk 0:01:05]}  Rd8 {[%clk 0:00:56]} 28. Qb3 {[%clk 0:01:01]}  Rd7 {[%clk 0:00:49]} 29. d4 {[%clk 0:01:01]}  Rad8 {[%clk 0:00:48]} 30. Rdc1 {[%clk 0:01:00]}  h6 {[%clk 0:00:34]} 31. d5 {[%clk 0:00:51]}  Nce5 {[%clk 0:00:34]} 32. f4 {[%clk 0:00:51]}  Nc6 {[%clk 0:00:20]} 33. dxc6 {[%clk 0:00:51]}  Rd3 {[%clk 0:00:20]} 34. R5c3 {[%clk 0:00:50]}  Qxe3+ {[%clk 0:00:20]} 35. Bf2 {[%clk 0:00:50]}  Qxc1+ {[%clk 0:00:15]} 36. Rxc1 {[%clk 0:00:49]}  Rxb3 {[%clk 0:00:16]} 37. c7 {[%clk 0:00:48]}  Rbd3 {[%clk 0:00:11]} 38. cxd8=Q+ {[%clk 0:00:46]}  Rxd8 {[%clk 0:00:12]} 39. f5 {[%clk 0:00:45]}  Nf4 {[%clk 0:00:12]} 40. Kf1 {[%clk 0:00:43]}  b6 {[%clk 0:00:11]} 41. Bg3 {[%clk 0:00:42]}  Nxg2 {[%clk 0:00:11]} 42. Kxg2 {[%clk 0:00:42]}  Rd2+ {[%clk 0:00:12]} 43. Kf3 {[%clk 0:00:39]}  Rxb2 {[%clk 0:00:13]} 44. Rc8+ {[%clk 0:00:39]}  Kh7 {[%clk 0:00:12]} 45. Rc7 {[%clk 0:00:40]}  Rxa2 {[%clk 0:00:12]} 46. Rxf7 {[%clk 0:00:40]}  Kg8 {[%clk 0:00:12]} 47. Rd7 {[%clk 0:00:38]}  Ra5 {[%clk 0:00:12]} 48. Ke4 {[%clk 0:00:38]}  Ra4+ {[%clk 0:00:12]} 49. Kd5 {[%clk 0:00:37]}  Ra5+ {[%clk 0:00:11]} 50. Ke6 {[%clk 0:00:38]}  Ra2 {[%clk 0:00:10]} 51. Be5 {[%clk 0:00:38]}  Rg2 {[%clk 0:00:10]} 52. Rxa7 {[%clk 0:00:37]}  b5 {[%clk 0:00:11]} 53. Rb7 {[%clk 0:00:37]}  h5 {[%clk 0:00:09]} 54. h4 {[%clk 0:00:37]}  Rg4 {[%clk 0:00:08]} 55. f6 {[%clk 0:00:30]}  gxf6 {[%clk 0:00:08]} 56. Bxf6 {[%clk 0:00:30]}  b4 {[%clk 0:00:07]} 57. Rb8+ {[%clk 0:00:30]}  Kh7 {[%clk 0:00:07]} 58. Kf5 {[%clk 0:00:31]}  Rg8 {[%clk 0:00:07]} 59. Rb7+ {[%clk 0:00:31]}  Kh6 {[%clk 0:00:07]} 60. Bg5+ {[%clk 0:00:32]}  Rxg5+ {[%clk 0:00:06]} 61. hxg5# {[%clk 0:00:32]} 1-0


[Site "https://www.chess.com"]

[Event "Titled Tuesday Blitz February 01 A 2022"]
[White "Halvax, Georg"]
[Black "Nesterov, Arseniy"]
[WhiteFideId "1619543"]
[BlackFideId "24198455"]
[WhiteElo "2403"]
[BlackElo "2489"]
[Result "1-0"]
[Round "02"]
[TimeControl "180+1"]
[Date "2022.02.01"]
[WhiteClock "0:00:13"]
[BlackClock "0:00:03"]

1. e4 {[%clk 0:03:00]}  e5 {[%clk 0:02:59]} 2. Nf3 {[%clk 0:03:01]}  Nc6 {[%clk 0:02:59]} 3. d4 {[%clk 0:03:01]}  exd4 {[%clk 0:02:59]} 4. Nxd4 {[%clk 0:03:02]}  Bb4+ {[%clk 0:02:55]} 5. c3 {[%clk 0:03:01]}  Bc5 {[%clk 0:02:56]} 6. Nf5 {[%clk 0:02:57]}  Qf6 {[%clk 0:02:44]} 7. Be3 {[%clk 0:02:49]}  d6 {[%clk 0:02:30]} 8. Bxc5 {[%clk 0:02:47]}  dxc5 {[%clk 0:02:31]} 9. Ne3 {[%clk 0:02:48]}  Nge7 {[%clk 0:02:27]} 10. Nd2 {[%clk 0:02:45]}  Bd7 {[%clk 0:02:23]} 11. Qc2 {[%clk 0:02:45]}  O-O-O {[%clk 0:02:22]} 12. Be2 {[%clk 0:02:43]}  h5 {[%clk 0:02:21]} 13. Nf3 {[%clk 0:02:33]}  g5 {[%clk 0:02:15]} 14. Rf1 {[%clk 0:02:26]}  g4 {[%clk 0:02:09]} 15. Nd2 {[%clk 0:02:26]}  Ne5 {[%clk 0:01:51]} 16. O-O-O {[%clk 0:02:18]}  Qg5 {[%clk 0:01:45]} 17. Kb1 {[%clk 0:02:07]}  h4 {[%clk 0:01:41]} 18. Ndc4 {[%clk 0:01:59]}  f6 {[%clk 0:01:24]} 19. f4 {[%clk 0:01:38]}  gxf3 {[%clk 0:01:23]} 20. gxf3 {[%clk 0:01:39]}  Qf4 {[%clk 0:01:18]} 21. Qb3 {[%clk 0:01:17]}  Qxh2 {[%clk 0:00:50]} 22. Na5 {[%clk 0:01:11]}  b6 {[%clk 0:00:50]} 23. Ba6+ {[%clk 0:01:07]}  Kb8 {[%clk 0:00:50]} 24. Nd5 {[%clk 0:00:54]}  Be6 {[%clk 0:00:29]} 25. f4 {[%clk 0:00:53]}  Nxd5 {[%clk 0:00:18]} 26. exd5 {[%clk 0:00:51]}  Bf5+ {[%clk 0:00:19]} 27. Ka1 {[%clk 0:00:48]}  Bc2 {[%clk 0:00:19]} 28. Qb5 {[%clk 0:00:43]}  Bxd1 {[%clk 0:00:16]} 29. Nc6+ {[%clk 0:00:38]}  Ka8 {[%clk 0:00:12]} 30. Nxe5 {[%clk 0:00:38]}  Rd6 {[%clk 0:00:07]} 31. Nf7 {[%clk 0:00:37]}  Qc2 {[%clk 0:00:04]} 32. a3 {[%clk 0:00:32]}  c4 {[%clk 0:00:04]} 33. Qxc4 {[%clk 0:00:24]}  b5 {[%clk 0:00:03]} 34. Bxb5 {[%clk 0:00:21]}  Rb6 {[%clk 0:00:03]} 35. Nxh8 {[%clk 0:00:16]}  a6 {[%clk 0:00:03]} 36. Bc6+ {[%clk 0:00:12]}  Ka7 {[%clk 0:00:03]} 37. Qa2 {[%clk 0:00:13]}  Qd2 {[%clk 0:00:03]} 38. Qb1 {[%clk 0:00:13]}  Be2 {[%clk 0:00:03]} 39. Rc1 {[%clk 0:00:13]}  Bc4 {[%clk 0:00:04]} 40. Rc2 {[%clk 0:00:13]}  Qxf4 {[%clk 0:00:04]} 41. Qc1 {[%clk 0:00:13]}  Qg4 {[%clk 0:00:03]} 42. Nf7 {[%clk 0:00:13]}  h3 {[%clk 0:00:03]} 43. Nd8 {[%clk 0:00:13]}  Qc8 {[%clk 0:00:03]} 44. Ne6 {[%clk 0:00:13]}  Rxc6 {[%clk 0:00:03]} 45. dxc6 {[%clk 0:00:13]}  Qxe6 {[%clk 0:00:04]} 46. Qd1 {[%clk 0:00:12]}  Qxc6 {[%clk 0:00:04]} 47. Rc1 {[%clk 0:00:13]}  Be6 {[%clk 0:00:04]} 48. Qd4+ {[%clk 0:00:13]}  Kb7 {[%clk 0:00:04]} 49. Qxf6 {[%clk 0:00:14]}  Qc4 {[%clk 0:00:05]} 50. b3 {[%clk 0:00:14]}  Qxb3 {[%clk 0:00:05]} 51. Rb1 {[%clk 0:00:14]}  h2 {[%clk 0:00:05]} 52. Qh4 {[%clk 0:00:14]}  Ka7 {[%clk 0:00:03]} 53. Rxb3 {[%clk 0:00:13]}  Bd5 {[%clk 0:00:03]} 54. Qxh2 {[%clk 0:00:13]} 1-0


[Site "https://www.chess.com"]

[Event "Titled Tuesday Blitz February 01 A 2022"]
[White "Hansen, Eric"]
[Black "Weetik, Vjacheslav"]
[WhiteFideId "2606771"]
[BlackFideId "4153472"]
[WhiteElo "2568"]
[BlackElo "2469"]
[Result "1-0"]
[Round "02"]
[TimeControl "180+1"]
[Date "2022.02.01"]
[WhiteClock "0:00:22"]
[BlackClock "0:00:02"]

1. e4 {[%clk 0:02:53]}  c6 {[%clk 0:03:00]} 2. Nc3 {[%clk 0:02:52]}  d5 {[%clk 0:03:00]} 3. Nf3 {[%clk 0:02:53]}  dxe4 {[%clk 0:03:00]} 4. Nxe4 {[%clk 0:02:53]}  Nf6 {[%clk 0:03:01]} 5. d3 {[%clk 0:02:54]}  Bg4 {[%clk 0:02:47]} 6. Be2 {[%clk 0:02:52]}  Nbd7 {[%clk 0:02:44]} 7. O-O {[%clk 0:02:51]}  Qc7 {[%clk 0:02:42]} 8. Nfg5 {[%clk 0:02:19]}  Bf5 {[%clk 0:02:34]} 9. Ng3 {[%clk 0:02:13]}  Bg6 {[%clk 0:02:29]} 10. d4 {[%clk 0:01:33]}  h6 {[%clk 0:02:20]} 11. Nf3 {[%clk 0:01:31]}  e6 {[%clk 0:02:20]} 12. Bd3 {[%clk 0:01:28]}  Bxd3 {[%clk 0:02:18]} 13. Qxd3 {[%clk 0:01:28]}  Bd6 {[%clk 0:02:16]} 14. Re1 {[%clk 0:01:28]}  O-O-O {[%clk 0:02:14]} 15. c4 {[%clk 0:01:21]}  c5 {[%clk 0:02:07]} 16. Qc2 {[%clk 0:01:04]}  cxd4 {[%clk 0:01:43]} 17. Nxd4 {[%clk 0:01:04]}  a6 {[%clk 0:01:44]} 18. Nf3 {[%clk 0:00:59]}  Kb8 {[%clk 0:01:37]} 19. Rb1 {[%clk 0:00:59]}  h5 {[%clk 0:01:16]} 20. Bg5 {[%clk 0:00:56]}  Bf4 {[%clk 0:01:15]} 21. b4 {[%clk 0:00:46]}  Bxg5 {[%clk 0:00:57]} 22. Nxg5 {[%clk 0:00:47]}  h4 {[%clk 0:00:57]} 23. Nf1 {[%clk 0:00:47]}  Nb6 {[%clk 0:00:39]} 24. c5 {[%clk 0:00:46]}  Nbd5 {[%clk 0:00:39]} 25. h3 {[%clk 0:00:43]}  Rh5 {[%clk 0:00:32]} 26. Nf3 {[%clk 0:00:39]}  Nf4 {[%clk 0:00:31]} 27. Qc4 {[%clk 0:00:37]}  Rhd5 {[%clk 0:00:18]} 28. Ne3 {[%clk 0:00:30]}  Rd3 {[%clk 0:00:16]} 29. b5 {[%clk 0:00:30]}  axb5 {[%clk 0:00:15]} 30. Rxb5 {[%clk 0:00:30]}  N6h5 {[%clk 0:00:06]} 31. c6 {[%clk 0:00:22]}  b6 {[%clk 0:00:02]} 32. Reb1 {[%clk 0:00:22]} 1-0


[Site "https://www.chess.com"]